Cogmind - Beta 16 @@@ ROGUE MODE // 2025.10.28 @ 21:40:36 Player: WetterLettuce Result: Destroyed by Y-72 Warden with Railgun Performance ------------- Evolutions (6) 3000 Regions Visited (15) 3000 Robots Destroyed (117) 585 Value Destroyed (3538) 3538 Prototype IDs (27) 540 Alien Tech Used (0) 0 Bonus (1025) 1025 TOTAL SCORE: 11688 Bonus ------- Follower Combat Kills 439 Registered with UFD 300 Met Data Miner 300 Friendly Fire -14 Cogmind --------- Core Integrity 0/1150 Matter 300/300 Energy 100/100 System Corruption 35% Temperature Cool (9) Movement Core (100) Ox1 Location -4/Upper Caves Parts ------- > --- POWER (1) -------- (None) > --- PROPULSION (4) --- (None) > --- UTILITY (11) ----- A0-MCA's Component Scanner > --- WEAPON (3) ------- Companion Sword > --- INVENTORY (5) ---- Stasis Canceller Improved Transmission Jammer Makeshift Heavy Armor Plating HERF Cannon Peak State ------------ > --- POWER ------------ Light Nuclear Core > --- PROPULSION ------- Improved Medium Treads Myomer Leg Myomer Leg Compact Wheel > --- UTILITY ---------- Medium Storage Unit Advanced Signal Interpreter 0b10 Decoder Chip [Looter] Improved Melee Analysis Suite Improved Melee Analysis Suite Improved Melee Analysis Suite Improved Melee Analysis Suite Hacking Suite Advanced Hacking Suite System Shield System Shield > --- WEAPON ----------- Makeshift Axe Companion Sword Lance > --- INVENTORY -------- Improved Heat Sink Improved Target Analyzer Core Analyzer Stasis Canceller Hardened Medium Armor Plating Makeshift Heavy Armor Plating Focal Shield A0-MCA's Component Scanner HERF Cannon [Rating: 86] Favorites ----------- Power Cooled Ion Engine Engine Cooled Ion Engine Power Core Light Nuclear Core Propulsion Improved Treads Treads Improved Treads Leg Aluminum Leg Wheel Compact Wheel Hover Unit Gravmag System Flight Unit VTOL Module Utility Medium Storage Unit Device Improved Heat Sink Storage Medium Storage Unit Processor Improved Melee Analysis Suite Hackware Hacking Suite Protection Improved Light Armor Plating Weapon Improved EM Shotgun Energy Gun Improved EM Shotgun Energy Cannon HERF Cannon Ballistic Gun Improved Assault Rifle Ballistic Cannon Improved Light Cannon Special Weapon Remote Datajack Impact Weapon Heavy Mace Slashing Weapon Companion Sword Piercing Weapon Lance Build | -11 -10 -10 -9 -9 -9 -9 -6 -6 -6 -6 -5 -5 -4 -4 -4 ------- Run | Yrd Mat Min Mat Sto Rec Scr Fac Low Low Dat Pro Fac Fac Upp Upp Slots Evolved 12 | . . . 2 . . . 6 . . . . 2 2 . . Power . | . . . . . . . . . . . . . . . . Propulsion 2 | . . . . . . . 1 . . . . . 1 . . Utility 9 | . . . 1 . . . 5 . . . . 2 1 . . Weapon 1 | . . . 1 . . . . . . . . . . . . Parts Attached 97 | 5 12 1 25 6 2 1 9 2 3 . . 17 7 7 . Power 10 | 1 2 . 2 3 . . . . . . . 1 1 . . Engine 9 | 1 2 . 2 3 . . . . . . . 1 . . . Core 1 | . . . . . . . . . . . . . 1 . . Reactor . | . . . . . . . . . . . . . . . . Propulsion 33 | 2 3 . 8 . . . 2 2 1 . . 10 3 2 . Treads 8 | 2 . . 3 . . . 1 1 . . . . . 1 . Leg 11 | . 2 . 5 . . . . 1 1 . . . 1 1 . Wheel 2 | . . . . . . . . . . . . 1 1 . . Hover 6 | . 1 . . . . . 1 . . . . 4 . . . Flight 6 | . . . . . . . . . . . . 5 1 . . Utility 29 | . 2 1 6 1 1 . 7 . 2 . . 4 3 2 . Device 6 | . . . 3 1 1 . . . . . . . 1 . . Storage 3 | . 1 . 2 . . . . . . . . . . . . Processor 12 | . 1 1 1 . . . 3 . 1 . . 2 1 2 . Hackware 6 | . . . . . . . 2 . 1 . . 2 1 . . Protection 2 | . . . . . . . 2 . . . . . . . . Artifact . | . . . . . . . . . . . . . . . . Weapon 25 | 2 5 . 9 2 1 1 . . . . . 2 . 3 . Energy Gun 11 | 2 1 . 7 1 . . . . . . . . . . . Energy Cannon 1 | . . . . . . . . . . . . . . 1 . Ballistic Gun 7 | . 4 . 2 . 1 . . . . . . . . . . Ballistic Cannon 1 | . . . . 1 . . . . . . . . . . . Launcher . | . . . . . . . . . . . . . . . . Special Weapon 1 | . . . . . . . . . . . . . . 1 . Impact Weapon 1 | . . . . . . . . . . . . 1 . . . Slashing Weapon 2 | . . . . . . 1 . . . . . . . 1 . Piercing Weapon 1 | . . . . . . . . . . . . 1 . . . Special Melee Weapon . | . . . . . . . . . . . . . . . . Unidentified Prototypes 7 | . . . 3 2 . 1 . . . . . 1 . . . Parts Lost 53 | . 7 . 6 2 1 . 1 . 4 . 5 3 4 20 . Power 5 | . 1 . 1 . . . . . . . 1 . 1 1 . Propulsion 20 | . 3 . 3 . . . 1 . 1 . 3 3 1 5 . Utility 16 | . . . . . . . . . 2 . 1 . 2 11 . Weapon 12 | . 3 . 2 2 1 . . . 1 . . . . 3 . Highest Loss Streak 17 | . 6 . 4 1 1 . 1 . 3 . 5 3 4 17 . To Critical Strikes 4 | . 1 . . . . . . . 1 . 1 1 . . . Average Backups 8 | 1 5 7 8 9 9 9 8 10 9 8 8 9 7 7 3 Power . | . 1 1 . . . . . . . . . . . . . Propulsion . | . . 1 1 . . . . . . . . . 1 . . Utility 4 | . 1 3 3 3 4 4 4 8 8 7 7 6 5 6 2 Weapon 2 | . 1 . 2 4 4 4 3 1 . . . . . . 1 Tool/Special . | . . . . . . . . . . . . . . . . Unused Backups 24 | . . . 4 3 1 2 3 . 1 . . 2 . 5 3 Power . | . . . . . . . . . . . . . . . . Propulsion . | . . . . . . . . . . . . . . . . Utility 14 | . . . 2 1 . 1 . . . . . 2 . 5 3 Weapon 9 | . . . 2 2 . 1 3 . 1 . . . . . . Tool/Special 1 | . . . . . 1 . . . . . . . . . . Average Slot Usage (%) 92 | . 77 100 98 100 99 100 97 100 99 88 82 73 89 73 9 Engine 8 | . 10 14 10 11 11 11 6 6 6 6 5 . 2 . . Treads 14 | . 15 . 3 22 22 22 17 14 18 13 11 . . 1 . Leg 4 | . 7 28 18 . . . . 3 1 6 5 . . 5 . Device 7 | . . . 11 11 11 11 6 6 6 6 5 . 1 . . Storage 9 | . 11 14 11 11 11 11 6 6 6 6 6 5 5 4 . Processor 14 | . 3 14 11 11 11 11 14 26 26 26 26 29 28 25 5 Hackware 4 | . . . . . . . 12 13 13 13 13 19 19 16 . Energy Gun 12 | . 17 14 21 22 17 11 6 6 5 . . . . . . Ballistic Gun 6 | . 9 14 11 1 3 11 6 6 6 1 . . . . . Ballistic Cannon 3 | . . . . 9 11 8 . . . . . . . . . Slashing Weapon 2 | . . . . . . 2 6 6 6 6 6 5 5 5 4 Peak Build Rating 86 | 5 7 7 23 24 25 30 56 56 54 49 47 77 76 86 18 Average Rating 30 | 3 5 7 15 23 24 25 50 55 53 46 45 50 71 61 17 On Entrance 32 | . 5 7 7 23 24 24 30 56 54 49 46 33 70 75 12 Avg Prop Armor Cover (%) 7 | . 9 . 6 . . . 3 4 5 7 8 9 13 10 . Naked Turns 1 | . . . . . . . . . . . . . . 1 . Heaviest Build 35 | 7 14 12 23 29 29 29 35 29 29 26 23 25 23 25 4 Greatest Support 76 | 40 40 20 46 46 46 46 76 76 76 53 53 22 32 50 3 Greatest Overweight (x) 7 | . 3 . 1 . . . . . . . 7 4 1 1 1 Average Overweight (x) . | . . . . . . . . . . . . 1 . . . Largest Inventory Capacity 10 | 5 8 8 10 10 10 10 10 10 10 10 10 10 10 10 5 Average Capacity 9 | 5 7 8 8 10 10 10 10 10 10 10 10 10 10 9 5 Most Carried 10 | 3 8 8 10 10 10 10 10 10 10 8 9 10 9 10 5 Average Carried 8 | 1 5 7 8 9 9 9 8 10 9 8 8 9 7 7 4 Final Capacity 10 | 5 8 8 10 10 10 10 10 10 10 10 10 10 10 5 5 Final Carried 10 | 3 7 7 10 10 9 10 10 10 8 8 9 10 7 5 5 Class Distribution -------------------- 27% | Commander-Gunner 16% | Commander-Mutant 15% | Gunner 13% | Mutant 12% | Hacker-Mutant 8% | Scavenger-Gunner 5% | Hacker-Gladiator Dominant Class ---------------- Mutant | -10/Materials Mutant | -10/Mines Scavenger-Gunner | -9/Materials Gunner | -9/Storage Commander-Gunner | -9/Recycling Commander-Gunner | -9/Scraptown Commander-Mutant | -6/Factory Commander-Mutant | -6/Lower Caves Hacker-Mutant | -6/Lower Caves Hacker-Mutant | -6/Data Miner Hacker-Mutant | -5/Proximity Caves Hacker-Mutant | -5/Factory Hacker-Gladiator | -4/Factory Hacker-Gladiator | -4/Upper Caves Mutant | -4/Upper Caves Resources | -11 -10 -10 -9 -9 -9 -9 -6 -6 -6 -6 -5 -5 -4 -4 -4 ----------- Run | Yrd Mat Min Mat Sto Rec Scr Fac Low Low Dat Pro Fac Fac Upp Upp Matter Collected 2089 | 235 243 . 621 387 57 14 81 40 45 . . 185 75 83 23 Remotely . | . . . . . . . . . . . . . . . . Salvage Created 4360 | . 301 . 1678 1302 84 . . 50 135 . 68 272 92 378 . Parts 271 | . 16 . 111 79 5 . . . 8 . 6 21 7 18 . Haulers Intercepted 10 | . . . 5 5 . . . . . . . . . . . Recyclers Shooed 1 | . . . . 1 . . . . . . . . . . . Parts Field Recycled . | . . . . . . . . . . . . . . . . Retrieved Matter . | . . . . . . . . . . . . . . . . Parts Self-Destructed 46 | . . . . . . . . 10 9 . 6 . . 21 . Prevented 1 | . . . . . . . . . 1 . . . . . . Parts Restored . | . . . . . . . . . . . . . . . . Kills | -11 -10 -10 -9 -9 -9 -9 -6 -6 -6 -6 -5 -5 -4 -4 -4 ------- Run | Yrd Mat Min Mat Sto Rec Scr Fac Low Low Dat Pro Fac Fac Upp Upp Combat Hostiles Destroyed 93 | . 8 . 33 24 2 . . 1 5 . 3 7 4 6 . Melee 22 | . . . . . . . . 1 1 . 3 7 4 6 . Guns 54 | . 7 . 32 12 1 . . . 2 . . . . . . Cannons 10 | . . . . 10 . . . . . . . . . . . AOE 6 | . . . 1 2 1 . . . 2 . . . . . . Classes Destroyed 13 | . 4 . 4 1 1 . . . . . 2 1 . . . Worker 1 | . . . . 1 . . . . . . . . . . . Hauler 10 | . . . 5 5 . . . . . . . . . . . Operator 4 | . 1 . 2 1 . . . . . . . . . . . Drone 2 | . . . . . . . . . . . 2 . . . . Watcher 9 | . 1 . 5 2 . . . . . . . 1 . . . Swarmer 29 | . 3 . 7 4 . . . . 5 . . 5 4 1 . Grunt 30 | . 5 . 16 7 . . . 1 . . . . . 1 . Brawler 2 | . . . 2 . . . . . . . . . . . . Duelist 5 | . . . 1 1 . . . . . . . . . 3 . Protector 1 | . . . . . 1 . . . . . . . . . . Sentry 20 | . . . 7 12 1 . . . . . . . . . . Hunter 1 | . . . . . . . . . . . 1 . . . . Programmer 3 | . . . . . . . . . . . . 2 . 1 . Best Kill Streak 6 | . 4 . 6 4 1 . . 1 4 . 2 3 4 5 . Combat Bots Only 6 | . 3 . 6 4 1 . . 1 4 . 2 3 4 5 . Max Kills in Single Turn 3 | . 2 . 2 2 1 . . 1 3 . 1 1 2 1 . Gunslinging 1 | . 1 . 1 1 . . . . . . . . . . . Exploded 2 | . . . 1 2 1 . . . 2 . . . . . . Melee 2 | . . . . . . . . 1 1 . 1 1 2 1 . Uniques/NPCs Destroyed . | . . . . . . . . . . . . . . . . Combat | -11 -10 -10 -9 -9 -9 -9 -6 -6 -6 -6 -5 -5 -4 -4 -4 -------- Run | Yrd Mat Min Mat Sto Rec Scr Fac Low Low Dat Pro Fac Fac Upp Upp Hostile Shots Fired 581 | . 92 . 147 60 . . 10 . 46 . 64 39 20 94 9 Missed 159 | . 15 . 47 26 . . 2 . 13 . 12 9 4 31 . Hits 422 | . 77 . 100 34 . . 8 . 33 . 52 30 16 63 9 Melee 21 | . . . 3 . . . . . . . . . . 17 1 Projectile 401 | . 77 . 97 34 . . 8 . 33 . 52 30 16 46 8 Critical Strikes 16 | . 3 . 4 1 . . . . 1 . 2 1 . 4 . Damage Taken 7246 | . 958 . 1247 521 44 . 153 9 581 . 942 462 251 1842 236 Core 2438 | . 242 . 229 53 . . 16 9 102 . 406 231 51 918 181 Absorbed by Shields . | . . . . . . . . . . . . . . . . Core Remaining (%) 49 | 100 . 3 . . . 29 . . . . 37 76 . . . Volleys Fired 227 | . 53 . 95 66 2 . . . 9 . . . . 2 . Largest 3 | . 2 . 3 3 3 . . . 2 . . . . 1 . Hottest 141 | . 100 . 141 141 141 . . . 68 . . . . 5 . Shots Fired 534 | . 92 . 251 167 6 . . 1 15 . . . . 2 . Gun 479 | . 92 . 251 116 4 . . 1 15 . . . . . . Cannon 53 | . . . . 51 2 . . . . . . . . . . Launcher . | . . . . . . . . . . . . . . . . Special 2 | . . . . . . . . . . . . . . 2 . Kinetic 224 | . 56 . 96 64 2 . . . 6 . . . . . . Thermal 191 | . 36 . 93 60 2 . . . . . . . . . . Explosive . | . . . . . . . . . . . . . . . . Electromagnetic 117 | . . . 62 43 2 . . 1 9 . . . . . . Robot Hit Streak 13 | . 7 . 13 9 7 . . 1 3 . . . . 1 . Robot Miss Streak 6 | . 3 . 5 6 . . . 1 5 . . . . 2 . Penetration Max . | . . . . . . . . . . . . . . . . Secondary Targets 13 | . 2 . 9 1 . . . . 1 . . . . . . Max Gunslinging Chain 1 | . 1 . 1 1 . . . . 1 . . . . . . Shots Hit Robots 386 | . 51 . 158 104 3 . 4 2 12 . 6 14 6 25 1 Core Hits 179 | . 20 . 73 50 2 . . 1 7 . 3 7 3 12 1 Critical Kills . | . . . . . . . . . . . . . . . . Critical Parts Destroyed . | . . . . . . . . . . . . . . . . Critical Strikes 17 | . 2 . 8 4 . . . . . . . . . 3 . Burn 12 | . 2 . 8 2 . . . . . . . . . . . Blast 2 | . . . . 2 . . . . . . . . . . . Impale 1 | . . . . . . . . . . . . . . 1 . Melee Attacks 78 | . . . . . . . 6 1 4 . 7 17 9 33 1 Impact 1 | . . . . . . . . . . . . 1 . . . Slashing 70 | . . . . . . . 6 1 4 . 7 16 7 28 1 Piercing 7 | . . . . . . . . . . . . . 2 5 . Sneak Attacks 2 | . . . . . . . . . . . 1 . 1 . . Combat Hostiles 1 | . . . . . . . . . . . 1 . . . . Follow-up Attacks 7 | . . . . . . . . . . . . . 2 5 . Damage Inflicted 8031 | . 651 . 2524 2115 75 . 173 49 351 . 318 608 260 879 28 Guns 4508 | . 651 . 2396 1279 30 . . 10 142 . . . . . . Cannons 729 | . . . . 729 . . . . . . . . . . . Explosions 359 | . . . 128 107 45 . . . 79 . . . . . . Melee 2435 | . . . . . . . 173 39 130 . 318 608 260 879 28 Ramming . | . . . . . . . . . . . . . . . . Kinetic 1987 | . 323 . 858 778 . . . . 28 . . . . . . Thermal 2258 | . 328 . 1016 790 45 . . . 79 . . . . . . Explosive . | . . . . . . . . . . . . . . . . Electromagnetic 1351 | . . . 650 547 30 . . 10 114 . . . . . . Impact . | . . . . . . . . . . . . . . . . Slashing 2225 | . . . . . . . 173 39 130 . 318 608 185 744 28 Piercing 210 | . . . . . . . . . . . . . 75 135 . Highest Corruption 35 | . 2 2 4 4 4 . 1 1 1 1 1 5 . 35 35 Average Corruption 3 | . 2 2 2 4 4 . 1 1 1 1 1 5 . 31 35 Corruption Purged . | . . . . . . . . . . . . . . . . Corruption Blocked . | . . . . . . . . . . . . . . . . Effects 98 | . 11 1 17 24 20 . 1 2 5 1 1 3 . 6 6 Message Errors 17 | . 1 . 4 3 7 . . 1 . . . . . . 1 Matter Fused 27 | . 2 1 6 8 3 . 1 . 1 . . 2 . 2 1 Heat Flow Errors 12 | . 1 . 2 2 3 . . . 1 1 1 . . . 1 Energy Discharges 11 | . 2 . . 3 1 . . . 1 . . 1 . 1 2 Parts Rejected 3 | . 1 . . . 1 . . . . . . . . 1 . Parts Fused 3 | . . . 1 1 . . . . 1 . . . . . . Data Loss (minor) 13 | . 2 . 2 3 4 . . . . . . . . 1 1 Data Loss (major) 2 | . . . . 1 1 . . . . . . . . . . Misfires 2 | . . . 1 . . . . 1 . . . . . . . Alerts 1 | . . . . 1 . . . . . . . . . . . Misdirections 1 | . . . . . . . . . . . . . . 1 . Weapon Failures 6 | . 2 . 1 2 . . . . 1 . . . . . . Overload Shots . | . . . . . . . . . . . . . . . . Overflow Damage 103 | . . . . . 1 . 23 . 4 . . 51 24 . . Projectiles . | . . . . . . . . . . . . . . . . Explosions 5 | . . . . . 1 . . . 4 . . . . . . Melee 98 | . . . . . . . 23 . . . . 51 24 . . Knockbacks 1 | . . . . 1 . . . . . . . . . . . Impact . | . . . . . . . . . . . . . . . . Kinetic 1 | . . . . 1 . . . . . . . . . . . Secondary . | . . . . . . . . . . . . . . . . Self-Inflicted Damage 158 | . . . 38 38 44 . . . 38 . . . . . . Shots 4 | . . . 1 1 1 . . . 1 . . . . . . Rammed . | . . . . . . . . . . . . . . . . Targets Rammed . | . . . . . . . . . . . . . . . . Kicked . | . . . . . . . . . . . . . . . . Crushed . | . . . . . . . . . . . . . . . . Highest Temperature 477 | . 477 . 339 211 198 . . . 152 120 53 . . . 57 Average Temperature 80 | . 166 . 57 51 63 . . . 84 74 30 . . . 35 Received Heat Transfer 1374 | . 549 . 426 174 . . . . 15 . 18 . 18 147 27 Effects 6 | . 5 . 1 . . . . . . . . . . . . Shutdowns 1 | . 1 . . . . . . . . . . . . . . Energy Bleed 2 | . 1 . 1 . . . . . . . . . . . . Damage (major) 3 | . 3 . . . . . . . . . . . . . . Siege Activations . | . . . . . . . . . . . . . . . . Martial Activations . | . . . . . . . . . . . . . . . . Shielding Activations . | . . . . . . . . . . . . . . . . Robots Disrupted . | . . . . . . . . . . . . . . . . Combat Hostiles . | . . . . . . . . . . . . . . . . Robots Corrupted . | . . . . . . . . . . . . . . . . Combat Hostiles . | . . . . . . . . . . . . . . . . Parts Fried 1 | . . . . . . . . . 1 . . . . . . Impact Corruptions . | . . . . . . . . . . . . . . . . Robots Melted 1 | . 1 . . . . . . . . . . . . . . Combat Hostiles 1 | . 1 . . . . . . . . . . . . . . Parts Melted 10 | . 4 . 2 4 . . . . . . . . . . . Heat Transferred 5752 | . 1110 . 2814 1728 50 . . . 50 . . . . . . Parts Sabotaged . | . . . . . . . . . . . . . . . . Parts Stolen . | . . . . . . . . . . . . . . . . Parts Stripped . | . . . . . . . . . . . . . . . . Power Chain Reactions 6 | . . . 3 1 1 . . . 1 . . . . . . Alert | -11 -10 -10 -9 -9 -9 -9 -6 -6 -6 -6 -5 -5 -4 -4 -4 ------- Run | Yrd Mat Min Mat Sto Rec Scr Fac Low Low Dat Pro Fac Fac Upp Upp Maximum Alert Level 1 | . . . 1 1 . . . . . . . . . . . Low Security (%) 78 | 100 100 100 62 39 100 . 100 . . . . 100 100 . . Level 1 21 | . . . 37 60 . . . . . . . . . . . Level 2 . | . . . . . . . . . . . . . . . . Level 3 . | . . . . . . . . . . . . . . . . Level 4 . | . . . . . . . . . . . . . . . . Level 5 . | . . . . . . . . . . . . . . . . High Security . | . . . . . . . . . . . . . . . . Max Security . | . . . . . . . . . . . . . . . . Peak Influence 364 | . 62 . 282 364 84 . 128 . . . . 98 70 . . Initial 107 | . . . . 107 48 . . . . . . 18 12 . . Average 88 | . 14 . 121 234 17 . 34 . . . . 26 39 . . Influence Increases 3374 | . 248 . 981 849 243 . 187 159 163 . 40 212 90 202 . Destroy 0b10 Robot/C 2120 | . 160 . 660 480 120 . 60 100 140 . 20 140 80 160 . Destroy 0b10 Robot/NC 140 | . 10 . 60 45 5 . 5 . . . 10 5 . . . Destroy Leader 488 | . 42 . 170 174 . . 10 20 20 . 10 22 10 10 . Allied During Kill 158 | . . . . 15 57 . 42 39 3 . . . . 2 . Successful Hack 194 | . 20 . 33 69 41 . 31 . . . . . . . . Disable Machine 135 | . . . 30 60 15 . 30 . . . . . . . . Destroy Structure 34 | . 1 . 13 6 5 . 9 . . . . . . . . Partial Spotted 15 | . 15 . . . . . . . . . . . . . . Lose Combat Pursuer 90 | . . . 15 . . . . . . . . 45 . 30 . Influence Decreases 3374 | . 248 . 726 978 369 . 187 137 165 20 10 216 76 227 15 Entered New Map 296 | . . . . 148 78 . . . 5 20 . 12 14 15 4 Time Decay 2092 | . 238 . 453 510 261 . 147 48 130 . 10 174 40 70 11 Lost Part 274 | . 10 . 50 20 10 . . . 30 . . 30 22 102 . Lost Ally 189 | . . . . . 20 . 40 89 . . . . . 40 . Purge Threat 523 | . . . 223 300 . . . . . . . . . . . Squads Dispatched 11 | . 1 . 4 2 . . 1 . . . . 2 . . 1 Investigation 5 | . . . 3 2 . . . . . . . . . . . Extermination 2 | . . . . . . . 1 . . . . 1 . . . Reinforcement 3 | . 1 . 1 . . . . . . . . 1 . . . Assault 1 | . . . . . . . . . . . . . . . 1 Garrison . | . . . . . . . . . . . . . . . . Intercept . | . . . . . . . . . . . . . . . . Searches Triggered . | . . . . . . . . . . . . . . . . Construction Impeded . | . . . . . . . . . . . . . . . . Haulers Reinforced . | . . . . . . . . . . . . . . . . Active Scanning Responses . | . . . . . . . . . . . . . . . . Cargo Convoy Interrupts . | . . . . . . . . . . . . . . . . Stealth | -11 -10 -10 -9 -9 -9 -9 -6 -6 -6 -6 -5 -5 -4 -4 -4 --------- Run | Yrd Mat Min Mat Sto Rec Scr Fac Low Low Dat Pro Fac Fac Upp Upp Distress Signals 7 | . 1 . 4 2 . . . . . . . . . . . Communications Jammed . | . . . . . . . . . . . . . . . . Distress Signals . | . . . . . . . . . . . . . . . . Times Spotted 162 | . 18 . 42 31 5 . 7 5 11 . 6 15 6 12 4 Peak Tracking Total 9 | . 4 . 7 5 4 . 2 2 5 . 2 6 2 9 5 Tactical Retreats 4 | . . . 1 . . . . . . . . 1 . 2 . Traps | -11 -10 -10 -9 -9 -9 -9 -6 -6 -6 -6 -5 -5 -4 -4 -4 ------- Run | Yrd Mat Min Mat Sto Rec Scr Fac Low Low Dat Pro Fac Fac Upp Upp Traps Triggered 11 | . 2 . 5 3 . . . . . . . 1 . . . Indirectly . | . . . . . . . . . . . . . . . . Trap Hack Attempts . | . . . . . . . . . . . . . . . . Triggered . | . . . . . . . . . . . . . . . . Disarmed . | . . . . . . . . . . . . . . . . Reprogrammed . | . . . . . . . . . . . . . . . . Reused . | . . . . . . . . . . . . . . . . Traps Extracted . | . . . . . . . . . . . . . . . . Installed . | . . . . . . . . . . . . . . . . Triggered . | . . . . . . . . . . . . . . . . Machines | -11 -10 -10 -9 -9 -9 -9 -6 -6 -6 -6 -5 -5 -4 -4 -4 ---------- Run | Yrd Mat Min Mat Sto Rec Scr Fac Low Low Dat Pro Fac Fac Upp Upp Machines Disabled 9 | . . . 2 4 1 . 2 . . . . . . . . Max in Single Turn 1 | . . . 1 1 1 . . . . . . . . . . Machines Repaired . | . . . . . . . . . . . . . . . . Machines Dismantled . | . . . . . . . . . . . . . . . . Machines Sabotaged . | . . . . . . . . . . . . . . . . Overloaded Fab Kills . | . . . . . . . . . . . . . . . . Hacking | -11 -10 -10 -9 -9 -9 -9 -6 -6 -6 -6 -5 -5 -4 -4 -4 --------- Run | Yrd Mat Min Mat Sto Rec Scr Fac Low Low Dat Pro Fac Fac Upp Upp Machines Accessed 60 | . 7 . 11 13 10 4 7 2 . 4 . 1 . 1 . Terminals 35 | . 6 . 8 12 6 . 3 . . . . . . . . Fabricators 3 | . . . . . . . 2 . . . . 1 . . . Repair Stations . | . . . . . . . . . . . . . . . . Recycling Units 9 | . 1 . 1 1 4 . 2 . . . . . . . . Scanalyzers 2 | . . . 2 . . . . . . . . . . . . Garrison Access . | . . . . . . . . . . . . . . . . Total Hacks 195 | . 23 . 39 45 26 8 17 5 . 29 . 2 . 1 . Successful 130 | . 12 . 24 26 16 8 8 5 . 29 . 1 . 1 . Failed 64 | . 11 . 14 19 10 . 9 . . . . 1 . . . Catastrophic 9 | . 3 . . 2 3 . 1 . . . . . . . . Database Lockouts 1 | . . . 1 . . . . . . . . . . . . Manual 92 | . 21 . 20 24 16 . 9 . . . . 2 . . . Terminals 112 | . 21 . 26 43 13 . 9 . . . . . . . . Fabricators 5 | . . . . . . . 3 . . . . 2 . . . Repair Stations . | . . . . . . . . . . . . . . . . Recycling Units 25 | . 2 . 3 2 13 . 5 . . . . . . . . Scanalyzers 10 | . . . 10 . . . . . . . . . . . . Garrison Access . | . . . . . . . . . . . . . . . . Terminal Hacks 74 | . 5 . 7 16 3 8 . 5 . 29 . . . 1 . Record 22 | . . . . . . 7 . 4 . 11 . . . . . Part Schematic 17 | . 1 . . 3 1 . . . . 12 . . . . . Robot Schematic 4 | . . . . . 1 . . . . 3 . . . . . Robot Analysis 1 | . . . . . 1 . . . . . . . . . . Prototype ID Bank 5 | . . . . 2 . . . . . 3 . . . . . Open Door 7 | . . . . 4 . 1 . 1 . . . . . 1 . Branch Access Points 1 | . . . 1 . . . . . . . . . . . . Terminal Index 2 | . 1 . . 1 . . . . . . . . . . . Alert Level 2 | . . . 1 1 . . . . . . . . . . . Unreport Threat 4 | . . . 2 2 . . . . . . . . . . . Transport Status 1 | . . . 1 . . . . . . . . . . . . Hauler Manifests 3 | . 1 . 1 1 . . . . . . . . . . . Registered Components 3 | . 1 . 1 1 . . . . . . . . . . . Zone Layout 2 | . 1 . . 1 . . . . . . . . . . . Fabricator Hacks . | . . . . . . . . . . . . . . . . Repair Station Hacks . | . . . . . . . . . . . . . . . . Recycling Unit Hacks 6 | . . . . . 5 . 1 . . . . . . . . Retrieve Components 6 | . . . . . 5 . 1 . . . . . . . . Scanalyzer 8 | . . . 8 . . . . . . . . . . . . Insert Component 3 | . . . 3 . . . . . . . . . . . . Analyze 1 | . . . 1 . . . . . . . . . . . . Retrieve Study 4 | . . . 4 . . . . . . . . . . . . Garrison Access Hacks . | . . . . . . . . . . . . . . . . Unauthorized Hacks 42 | . 7 . 9 10 8 . 7 . . . . 1 . . . Terminals 30 | . 6 . 8 9 4 . 3 . . . . . . . . Botnet 27 | . 5 . 7 8 4 . 3 . . . . . . . . Operators 3 | . 1 . 1 1 . . . . . . . . . . . Fabricators 3 | . . . . . . . 2 . . . . 1 . . . Fabnet 3 | . . . . . . . 2 . . . . 1 . . . Repair Stations . | . . . . . . . . . . . . . . . . Recycling Units 9 | . 1 . 1 1 4 . 2 . . . . . . . . Monitor 1 | . . . . . 1 . . . . . . . . . . Recyclers 4 | . 1 . . . 1 . 2 . . . . . . . . Mask 4 | . . . 1 1 2 . . . . . . . . . . Scanalyzers . | . . . . . . . . . . . . . . . . Garrison Access . | . . . . . . . . . . . . . . . . Data Cores Recovered 2 | . . . 1 . . . 1 . . . . . . . . Used . | . . . . . . . . . . . . . . . . Hacking Detections 43 | . 7 . 10 12 6 . 7 . . . . 1 . . . Full Trace Events 1 | . . . . 1 . . . . . . . . . . . Feedback Events . | . . . . . . . . . . . . . . . . Feedback Blocked . | . . . . . . . . . . . . . . . . Robot Schematics Acquired 4 | . . . . . 1 . . . . 3 . . . . . Robots Built . | . . . . . . . . . . . . . . . . Authchips . | . . . . . . . . . . . . . . . . Time . | . . . . . . . . . . . . . . . . Total Robot Build Rating . | . . . . . . . . . . . . . . . . Part Schematics Acquired 18 | . 1 . 1 3 1 . . . . 12 . . . . . Parts Built . | . . . . . . . . . . . . . . . . Authchips . | . . . . . . . . . . . . . . . . Time . | . . . . . . . . . . . . . . . . Total Part Build Rating . | . . . . . . . . . . . . . . . . Part Studies Acquired 4 | . . . 4 . . . . . . . . . . . . Parts Repaired . | . . . . . . . . . . . . . . . . Time . | . . . . . . . . . . . . . . . . Parts Recycled . | . . . . . . . . . . . . . . . . Recycled Matter . | . . . . . . . . . . . . . . . . Retrieved Matter . | . . . . . . . . . . . . . . . . Retrieved Components 6 | . . . . . 5 . 1 . . . . . . . . Parts Scanalyzed 1 | . . . 1 . . . . . . . . . . . . Part Schematics Acquired 1 | . . . 1 . . . . . . . . . . . . Parts Damaged . | . . . . . . . . . . . . . . . . Bothacking | -11 -10 -10 -9 -9 -9 -9 -6 -6 -6 -6 -5 -5 -4 -4 -4 ------------ Run | Yrd Mat Min Mat Sto Rec Scr Fac Low Low Dat Pro Fac Fac Upp Upp Used RIF Installer . | . . . . . . . . . . . . . . . . Robots Hacked 3 | . . . . . . . . . . . . . . 2 1 Non-combat . | . . . . . . . . . . . . . . . . Combat 3 | . . . . . . . . . . . . . . 2 1 Robot Hacks Applied . | . . . . . . . . . . . . . . . . Relay Couplers Released . | . . . . . . . . . . . . . . . . Fabnet Peak Effective % 6 | . . . . . . . . . . . 6 6 5 5 5 Autooverrided 3 | . . . . . . . . . . . . . . 2 1 Robots Rewired 6 | . . . . 1 5 . . . . . . . . . . Allies Hacked . | . . . . . . . . . . . . . . . . Hacks Repelled . | . . . . . . . . . . . . . . . . Allies | -11 -10 -10 -9 -9 -9 -9 -6 -6 -6 -6 -5 -5 -4 -4 -4 -------- Run | Yrd Mat Min Mat Sto Rec Scr Fac Low Low Dat Pro Fac Fac Upp Upp Total Allies 21 | . . . . 10 5 . . 3 . . . . . 2 1 Largest Group 13 | . . . . 10 13 13 13 10 3 . . . . 1 . Highest-Rated Group 172 | . . . . 88 157 157 157 172 41 . . . . 49 . Highest-Rated Ally 49 | . . . . 16 34 34 34 34 25 . . . . 49 . Total Orders . | . . . . . . . . . . . . . . . . Ally Attacks 87 | . . . . 2 22 . 20 30 9 . . . . 4 . Total Damage 1132 | . . . . 23 165 . 387 310 73 . . . . 174 . Kills 19 | . . . . . 5 . 5 5 2 . . . . 2 . Allies Corrupted 1 | . . . . . . . . . . . . . . . 1 Allies Melted . | . . . . . . . . . . . . . . . . Intel | -11 -10 -10 -9 -9 -9 -9 -6 -6 -6 -6 -5 -5 -4 -4 -4 ------- Run | Yrd Mat Min Mat Sto Rec Scr Fac Low Low Dat Pro Fac Fac Upp Upp Active Infowar (turns) 3400 | . . . . . . . 641 694 377 124 316 796 87 365 . Decoding 3400 | . . . . . . . 641 694 377 124 316 796 87 365 . Cloaking 26 | . . . . . . . . . . . . . 26 . . Robot Analysis Total 1 | . . . . . 1 . . . . . . . . . . Derelict Logs Recovered 5 | . . 2 . . . . . 1 1 . 1 . . . . Drone Launches . | . . . . . . . . . . . . . . . . Drone Recoveries . | . . . . . . . . . . . . . . . . Decoded 0b10 Intel 86 | . . . . . . . 36 . . . . 45 5 . . Items 86 | . . . . . . . 36 . . . . 45 5 . . Exploration | -11 -10 -10 -9 -9 -9 -9 -6 -6 -6 -6 -5 -5 -4 -4 -4 ------------- Run | Yrd Mat Min Mat Sto Rec Scr Fac Low Low Dat Pro Fac Fac Upp Upp Turns Passed 11165 | 63 1087 157 1611 1397 942 2311 641 694 377 124 316 796 87 464 98 Spaces Moved 6677 | 34 622 115 1015 687 519 1426 349 410 211 78 180 506 49 388 88 Core 391 | 1 5 . . . . . . . . . 7 151 . 139 88 Treads 4412 | 33 381 . 147 687 519 1426 349 410 211 78 171 . . . . Legs 1466 | . 236 115 868 . . . . . . . 2 . 10 235 . Wheels 233 | . . . . . . . . . . . . 200 19 14 . Hover 135 | . . . . . . . . . . . . 115 20 . . Flight 40 | . . . . . . . . . . . . 40 . . . Fastest Speed 50 | 50 120 120 105 160 160 160 160 160 160 160 160 56 61 50 50 Average Speed 145 | 156 144 120 122 160 160 160 160 160 160 160 165 141 115 94 97 Slowest Speed 400 | 160 200 120 190 160 160 160 160 160 160 160 400 250 125 120 100 Overloaded Moves . | . . . . . . . . . . . . . . . . Propulsion Burnouts . | . . . . . . . . . . . . . . . . Robots Hopped . | . . . . . . . . . . . . . . . . Potential Cave-ins . | . . . . . . . . . . . . . . . . Cave-ins Triggered . | . . . . . . . . . . . . . . . . Exploration Rate (%) 50 | 4 89 25 90 92 97 90 12 60 40 68 35 18 2 69 15 Regions Visited 15 Branch Regions 10 Pre-discovered Areas 5 | . . 1 . . . 1 . 2 . 1 . . . . . Known Exits Taken 12 | . . 1 1 1 1 1 1 1 1 1 1 1 1 . . Unknown Exits Taken 3 | 1 1 . . . . . . . . . . . . 1 . Scrap Searched 14 | . . . . . . 4 . 2 2 . 1 . . 3 2 Spaces Dug 2 | . . . . . . . 1 . . . . . . 1 . Terrain Destroyed 25 | . . . 9 6 6 . 1 . 2 . . . . 1 . Melee 2 | . . . . . . . 1 . . . . . . 1 . Projectile 1 | . . . . 1 . . . . . . . . . . . AOE 22 | . . . 9 5 6 . . . 2 . . . . . . Terrain Rammed . | . . . . . . . . . . . . . . . . Walls Destroyed . | . . . . . . . . . . . . . . . . Machines Disabled . | . . . . . . . . . . . . . . . . Actions | -11 -10 -10 -9 -9 -9 -9 -6 -6 -6 -6 -5 -5 -4 -4 -4 --------- Run | Yrd Mat Min Mat Sto Rec Scr Fac Low Low Dat Pro Fac Fac Upp Upp Total 7548 | 41 716 133 1187 850 626 1457 422 448 230 78 190 562 68 441 99 Wait 302 | . 9 17 14 74 54 24 48 34 1 . 3 6 2 8 8 Move 6662 | 33 621 114 1014 686 518 1425 348 409 210 77 179 505 48 387 88 Hop . | . . . . . . . . . . . . . . . . Pick Up 59 | 3 10 1 14 6 1 4 6 . 2 . 1 6 1 3 1 Fast Attach 63 | 5 9 . 11 2 3 . 6 2 . . . 14 4 7 . Attach 34 | . 7 . 5 2 1 1 3 . 3 . . 5 4 2 1 Detach 8 | . 2 . 1 1 . . . . . . . 2 . 2 . Swap 19 | . 2 1 11 4 . . . . . . . . . 1 . Drop 61 | . 3 . 22 8 3 3 5 2 1 1 . 8 2 3 . Fire 227 | . 53 . 95 66 2 . . . 9 . . . . 2 . Melee 68 | . . . . . . . 6 1 4 . 7 16 7 26 1 Ram . | . . . . . . . . . . . . . . . . Kick . | . . . . . . . . . . . . . . . . Crush . | . . . . . . . . . . . . . . . . Escape Stasis . | . . . . . . . . . . . . . . . . Rewire 45 | . . . . 1 44 . . . . . . . . . . Trap . | . . . . . . . . . . . . . . . . Miscellaneous . | . . . . . . . . . . . . . . . . Route ------- -11/Scrapyard -10/Materials (discovered 5 exits: *Mat x3 / [*Min x2]) -10/Mines (discovered 2 exits: *Mat / *Sub) -9/Materials (discovered 4 exits: [*Mat x2] / *Min / *Sto) -9/Storage (discovered 2 exits: [*Mat] / *Rec) -9/Recycling (discovered 2 exits: [*Fac] / *Scr) -9/Scraptown (discovered 2 exits: *Fac x2) -6/Factory -6/Lower Caves -6/Lower Caves (discovered 2 exits: Fac / *Dat) -6/Data Miner -5/Proximity Caves -5/Factory -4/Factory -4/Upper Caves -4/Upper Caves (discovered 1 exit: [*Res]) History --------- Turn | Location | Event 37 | -11/Scrapyard | Discovered new exit (range 15) 64 | -11/Scrapyard | Entered Materials 288 | -10/Materials | Discovered new exit (range 6) 311 | -10/Materials | Build established: Mutant 325 | -10/Materials | Discovered new exit (range 8) 719 | -10/Materials | Discovered new exit (range 8) 756 | -10/Materials | Discovered new exit (range 13) 791 | -10/Materials | Core integrity fell below 50% 835 | -10/Materials | Core integrity fell below 20% 863 | -10/Materials | Lost 6 parts (1p2n3w) 1078 | -10/Materials | Discovered new exit (range 6) 1151 | -10/Materials | Entered Mines 1190 | -10/Mines | Received a Rocket Launcher from a helpful Derelict 1206 | -10/Mines | Discovered new exit (range 14) 1231 | -10/Mines | Identified exit to Subcaves 1277 | -10/Mines | Learned Materials terminal intel 1281 | -10/Mines | Learned location of Storage (-9) 1304 | -10/Mines | Discovered new exit (range 4) 1307 | -10/Mines | Identified exit to Materials 1308 | -10/Mines | Entered Materials 1308 | -9/Materials | Evolved 2 slots: Utility x1, Weapon x1 1309 | -9/Materials | Loaded intel: 12 terminal locations 1422 | -9/Materials | Lost 4 parts (1p2n1w) 1464 | -9/Materials | Central database locked down 1712 | -9/Materials | Discovered new exit (range 12) 1777 | -9/Materials | Build established: Scavenger-Gunner 2082 | -9/Materials | Build established: Gunner 2159 | -9/Materials | Core integrity fell below 50% 2192 | -9/Materials | Identified exit to Mines 2192 | -9/Materials | Identified exit to Storage 2385 | -9/Materials | Discovered new exit (range 9) 2393 | -9/Materials | Build established: Scavenger-Gunner 2579 | -9/Materials | Discovered new exit (range 9) 2919 | -9/Materials | Entered Storage 3009 | -9/Storage | Build established: Gunner 3238 | -9/Storage | Discovered new exit (range 16) 3994 | -9/Storage | Assisted by bots powering up and referring to "LRC-V3" 4281 | -9/Storage | Build established: Commander-Gunner 4282 | -9/Storage | Used back door to open Recycling access 4282 | -9/Storage | Discovered new exit (range 5) 4286 | -9/Storage | Identified exit to Recycling 4316 | -9/Storage | Entered Recycling 4316 | -9/Recycling | Accompanied by 10 allies 4886 | -9/Recycling | Discovered new exit (range 16) 5176 | -9/Recycling | Scanned before Scraplab entrance 5198 | -9/Recycling | Entered Scraplab 5211 | -9/Recycling | Discovered new exit (range 3) 5213 | -9/Recycling | Identified exit to Scraptown 5258 | -9/Recycling | Entered Scraptown 5258 | -9/Scraptown | Accompanied by 13 allies 5258 | -9/Scraptown | System corruption cleaned by C-Scrubber 5425 | -9/Scraptown | Heard Great Nut preacher, LISTEN AND RECITE! 5442 | -9/Scraptown | Visited Awakened 5455 | -9/Scraptown | Visited Red Mages 5922 | -9/Scraptown | Discovered new exit (range 11) 6047 | -9/Scraptown | Visited TADAMA 6085 | -9/Scraptown | Visited Cyclists 6178 | -9/Scraptown | Visited Cave Peace 6219 | -9/Scraptown | Visited Shadow of the Wyrm 6235 | -9/Scraptown | Visited Spacefarers 6291 | -9/Scraptown | Visited UFD Registry 6311 | -9/Scraptown | Registered with UFD as "Megastep" 6346 | -9/Scraptown | Visited Sword Containment 6400 | -9/Scraptown | Visited A0-MCA Data Center 6424 | -9/Scraptown | Visited Infowarlord's Domain 6474 | -9/Scraptown | Visited Curators Association 6718 | -9/Scraptown | Visited Research Penetration Think Tank 6786 | -9/Scraptown | Visited Modified Component R&D 6862 | -9/Scraptown | Visited Scrap Suit Storage 6891 | -9/Scraptown | Visited Scrapoid Pod Storage 6933 | -9/Scraptown | Visited LU-1G1's Boring Crew 7098 | -9/Scraptown | Given an A rating by A0-MCA 7101 | -9/Scraptown | Found A0-MCA's Component Scanner 7267 | -9/Scraptown | Entered Cyclist Reading Room 7318 | -9/Scraptown | Build established: Commander-Mutant 7539 | -9/Scraptown | Discovered new exit (range 5) 7543 | -9/Scraptown | Identified exit to Factory 7569 | -9/Scraptown | Entered Factory 7569 | -6/Factory | Accompanied by 13 allies 7569 | -6/Factory | Evolved 6 slots: Propulsion x1, Utility x5 7875 | -6/Factory | Allied Derelicts emerged from ambush trap array 8097 | -6/Factory | P-60 Hacker assimilated allied Excavator 2a 8175 | -6/Factory | Discovered new exit (range 5) 8181 | -6/Factory | Identified exit to Lower Caves 8210 | -6/Factory | Entered Lower Caves 8210 | -6/Lower Caves | Accompanied by 7 allies 8247 | -6/Lower Caves | Entered an active Warlord outpost 8255 | -6/Lower Caves | A Commander dispatched an escort 8257 | -6/Lower Caves | Learned location of Armory (-4) 8257 | -6/Lower Caves | Learned location of 1 exit from Research 8257 | -6/Lower Caves | Learned 8 Research zone layouts 8823 | -6/Lower Caves | Discovered new exit (range 11) 8876 | -6/Lower Caves | Lost 5 allies 8888 | -6/Lower Caves | Identified exit to Lower Caves 8904 | -6/Lower Caves | Entered another Lower Caves area 8904 | -6/Lower Caves | Accompanied by 3 allies 8905 | -6/Lower Caves | Commander's escort returned to base 8917 | -6/Lower Caves | Identified exit to Factory 9138 | -6/Lower Caves | Build established: Hacker-Mutant 9226 | -6/Lower Caves | Lost 3 parts (1n2u) 9260 | -6/Lower Caves | Discovered new exit (range 12) 9279 | -6/Lower Caves | Attracted the attention of an 0b10 outpost 9279 | -6/Lower Caves | Identified exit to Data Miner 9281 | -6/Lower Caves | Entered Data Miner 9281 | -6/Data Miner | Discovered new exit (range 6) 9312 | -6/Data Miner | Met Data Miner 9341 | -6/Data Miner | Learned location of Section 7 (-3) 9341 | -6/Data Miner | Acquired the access code to Warlord's prototype stash 9370 | -6/Data Miner | Received God Mode back door access code from Data Miner 9404 | -6/Data Miner | Identified exit to Proximity Caves 9405 | -6/Data Miner | Entered Proximity Caves 9704 | -5/Proximity Caves | Core integrity fell below 50% 9721 | -5/Proximity Caves | Entered Factory 9721 | -5/Factory | Evolved 2 slots: Utility x2 9727 | -5/Factory | Lost 5 parts (1p3n1u) 10192 | -5/Factory | Lost 3 parts (3n) 10504 | -5/Factory | Discovered new exit (range 9) 10508 | -5/Factory | Identified exit to Factory 10517 | -5/Factory | Entered another Factory area 10517 | -4/Factory | Evolved 2 slots: Propulsion x1, Utility x1 10519 | -4/Factory | Discovered new exit (range 12) 10589 | -4/Factory | Lost 4 parts (1p1n2u) 10602 | -4/Factory | Identified exit to Upper Caves 10604 | -4/Factory | Entered Upper Caves 10611 | -4/Upper Caves | Build established: Hacker-Gladiator 10619 | -4/Upper Caves | Spotted B-86 Titan 10674 | -4/Upper Caves | Lost 3 parts (2n1w) 10906 | -4/Upper Caves | Attracted the attention of an 0b10 outpost 10970 | -4/Upper Caves | System corruption reached 10% 10984 | -4/Upper Caves | Core integrity fell below 50% 10984 | -4/Upper Caves | System corruption reached 30% 10998 | -4/Upper Caves | Core integrity fell below 20% 11019 | -4/Upper Caves | Lost 17 parts (1p3n11u2w) 11061 | -4/Upper Caves | Discovered new exit (range 15) 11068 | -4/Upper Caves | Entered another Upper Caves area 11077 | -4/Upper Caves | Discovered new exit (range 9) 11102 | -4/Upper Caves | Encountered a Warlord checkpoint 11161 | -4/Upper Caves | Attracted the attention of an 0b10 outpost 11166 | -4/Upper Caves | Destroyed by Y-72 Warden with Railgun Last Messages --------------- Acquired Imp. Transmission Jammer. System corrupted: Energy discharge (-35). System corrupted: Component data lost. System corrupted: Energy discharge (-38). Fabnet algorithm triggers G-67 Veteran IFF filter rewrite. Y-72 Warden: "DETECTED UNIDENTIFIED DERELICT." B-60 Warrior springs to life. B-60 Warrior sneak attacks. G-67 Veteran system corrupted by crushing effect. System corrupted: Matter fused (-6). G-67 Veteran system terminally corrupted. Searching scrap... Found Imp. Thermal Shield. Found Hcp. Storage Unit. Found Adv. Terrain Scan Processor. Found 52 Matter. Acquired 6 matter. Y-72 Warden: "REQUESTING BACKUP." Map ----- +----------------------------------------------------+ | ?????????????????????????????????????????????????? | | ?????????????????????????????????????????????????? | | ?????????????????????????????????????????????????? | | ?????????????????????????????????????????????????? | | ?????????????????????????????????????????????????? | | ?????????????????????????????????????????????????? | | ?????????????????????????????????????????????????? | | ?????????????????????????????????????????????????? | | ?????????????????????????????????????????????????? | | ?????????????????????????????????????????????????? | | ?????????????????????????????????????????????????? | | ?????????????????????????????????????????????????? | | ?????????????????????????????????????????????????? | | ?????????????????????????????????????????????????? | | ??????????????????????????????????????####???????? | | ???????????????????????????????###???## ##??????? | | ????????????????????????###???## ##??# ######## | | ????????????????????????? ???# ##?# ## # | | ?????????????????????????# ???# ### | | ?????????????????????????# ##### ## | | ?????????????????????????# | | ??????????????????????#### | | ??????????????????????# | | ??????????????????????# ### ### | | ????????????????????????#!% "# ### # | | ????????????????????????#@!b "# #?## ## | | ??????????????????????? bY#="# #??# ## | | ??????????????????????# s##%"# #??##### ### | | ?????????????????????# # ? "# #??????# ##### | | ?????????????????????# #""""""# #??????# #?## | | ?????????????????????# ?######## #????? ##?# | | ?????????????????????##????????? ????? ##?## | | ???????????????????????????????? ????? ##?## | | ???????????????????????????????? ????? #??## | | ???????????????????????????????? ???? #??## | | ????????????????????????????????#????? ??## ### | | ????????????????????????????????????????## ##?# | | ????????????????????????????????????????# ### | | ????????????????????????????????????????## | | ?????????????????????????????????????????## ### | | ??????????????????????????????????????????## ##?## | | ???????????????????????????????????????????# #???? | | ???????????????????????????????????????????# #???? | | ??????????????????????????????????????????## #???? | | ?????????????????????????????????????????## ##??? | | ?????????????????????????????????????????# #### | | ?????????????????????????????????????????## < | | ??????????????????????????????????????????## | | ???????????????????????????????????????????### | | ?????????????????????????????????????????????## | +----------------------------------------------------+ Best States ------------- Heat Dissipation 51 Energy Generation 14 Energy Capacity 280 Matter Stores 300 Matter Capacity 300 Sight Range 16 Terrain Scan Density 10 Cloak Strength 3 Armor Coverage 300 Evasion (%) 55 Targeting Accuracy 5 Melee Accuracy 26 Recoil Reduction 3 Offensive Hacking 34 Defensive Hacking 20 Item Schematics ----------------- Datajack | -10/Materials | Hacked Mni. Grenade Launcher | -9/Materials | Scanalyzed Imp. Terrain Scanner | -9/Storage | Hacked Imp. Targeting Computer | -9/Storage | Hacked ECM Suite | -9/Storage | Hacked Trap Extractor | -9/Recycling | Hacked Combat Drone Bay | -6/Data Miner | Free Lgt. Regenerative Plating | -6/Data Miner | Free Enh. Flexi-carbon Leg | -6/Data Miner | Free Imp. Matter Compressor | -6/Data Miner | Free Imp. Linear Gravjet | -6/Data Miner | Free Railgun | -6/Data Miner | Free Adv. Plasma Cannon | -6/Data Miner | Free Imp. Antigrav System | -6/Data Miner | Free Adv. Coolant Injector | -6/Data Miner | Free Nova Cannon | -6/Data Miner | Free Mni. Smartbomb Launcher | -6/Data Miner | Free Imp. Armor Integrity Analyzer | -6/Data Miner | Free Robot Schematics ------------------ B-36 Bruiser | -9/Recycling | Hacked A-15 Conveyor | -6/Data Miner | Free L-41 Fighter | -6/Data Miner | Free R-10 Processor | -6/Data Miner | Free Fabricated ------------ Nothing Repaired ---------- Nothing Studied --------- Datajack | -9/Materials | Hacked Aluminum Leg | -9/Materials | Hacked Particle Gun | -9/Materials | Hacked Assault Rifle | -9/Materials | Hacked Alien Tech Used ----------------- None Achievements -------------- Ambidextrous Challenges ------------ None Game ------ Seed RagnarokConstructShotgun Manual? 0 Play Time 01:16:17 Cumulative 102.2 hours Start 2025.10.28 @ 20:22:01 End 2025.10.28 @ 21:40:36 Sessions 1 Manual Loads 0 Difficulty Rogue Special Mode None Game No. 119 Rogue 119 Adventurer 0 Explorer 0 Win Type - Total 1 Types 1/0/0/0/0/0/0/0/0/0 Lore% 73 Gallery% 56 Achievement% 38 Wizard Run 0 Options --------- Layout 1 ASCII 0 Keyboard 0 Movement Mouse Keybinds 0 Fullscreen 2 Font 24/Smallcaps Map View 50x35 Zoom Use 0% Tactical HUD 0 Map Filters NONE Filters NONE Steam 1 RUN: 527a6fb0-660f-443c-8cfd-2e49c35b74df